Cogmind - Beta 17 @@@ ROGUE MODE // 2026.06.23 @ 22:26:03 Player: OBLIQUE Result: Destroyed by BE-322(R) with Subdweller Beam Cannon Performance ------------- Evolutions (0) 0 Regions Visited (2) 400 Robots Destroyed (15) 75 Value Destroyed (382) 382 Prototype IDs (0) 0 Alien Tech Used (0) 0 Bonus (0) 0 TOTAL SCORE: 857 Bonus ------- None Cogmind --------- Core Integrity 0/250 Matter 243/300 Energy 94/100 System Corruption 0% Temperature Cool (9) Movement Flying (200) Ox2 Location -10/Subcaves Parts ------- > --- POWER (1) -------- (None) > --- PROPULSION (2) --- Flight Unit > --- UTILITY (2) ------ Transport Network Coupler > --- WEAPON (2) ------- Subdweller Machine Gun Subdweller Shrapnel Launcher > --- INVENTORY (5) ---- ECM Suite Subdweller Laser Subdweller Machine Gun Datajack Peak State ------------ > --- POWER ------------ Light Ion Engine > --- PROPULSION ------- Flight Unit Flight Unit > --- UTILITY ---------- Sensor Array Transport Network Coupler > --- WEAPON ----------- Riot Gun Light Assault Rifle > --- INVENTORY -------- Light Ion Engine Flight Unit Flight Unit ECM Suite Light Assault Rifle [Rating: 9] Favorites ----------- Power Light Ion Engine Engine Light Ion Engine Propulsion Flight Unit Wheel Compact Wheel Flight Unit Flight Unit Utility Transport Network Coupler Device Sensor Array Storage Small Storage Unit Processor Transport Network Coupler Weapon Light Assault Rifle Energy Gun Small Laser Ballistic Gun Light Assault Rifle Ballistic Cannon Battle Cannon Launcher Subdweller Shrapnel Launcher Build | -11 -10 -10 ------- Run | Yrd Mat Sub Slots Evolved . | . . . Power . | . . . Propulsion . | . . . Utility . | . . . Weapon . | . . . Parts Attached 24 | 6 10 8 Power 3 | 1 1 1 Engine 3 | 1 1 1 Core . | . . . Reactor . | . . . Propulsion 7 | 2 4 1 Treads . | . . . Leg . | . . . Wheel 2 | 2 . . Hover . | . . . Flight 5 | . 4 1 Utility 4 | 1 3 . Device 2 | . 2 . Storage 1 | 1 . . Processor 1 | . 1 . Hackware . | . . . Protection . | . . . Artifact . | . . . Weapon 10 | 2 2 6 Energy Gun 3 | 2 . 1 Energy Cannon . | . . . Ballistic Gun 5 | . 2 3 Ballistic Cannon 1 | . . 1 Launcher 1 | . . 1 Special Weapon . | . . . Impact Weapon . | . . . Slashing Weapon . | . . . Piercing Weapon . | . . . Special Melee Weapon . | . . . Unidentified Prototypes . | . . . Parts Lost 10 | . 1 9 Power 2 | . . 2 Propulsion 4 | . 1 3 Utility 1 | . . 1 Weapon 3 | . . 3 Highest Loss Streak 4 | . 1 4 To Critical Strikes . | . . . Average Backups 3 | . 3 4 Power . | . 1 . Propulsion . | . 1 . Utility . | . . 1 Weapon 1 | . . 1 Tool/Special . | . . . Unused Backups 4 | . 1 3 Power 1 | . 1 . Propulsion . | . . . Utility 1 | . . 1 Weapon 1 | . . 1 Tool/Special 1 | . . 1 Average Slot Usage (%) 87 | . 82 89 Engine 13 | . 14 13 Wheel 2 | . 8 . Flight 24 | . 18 28 Device 8 | . 11 6 Storage 1 | . 4 . Processor 9 | . 1 14 Energy Gun 3 | . 8 . Ballistic Gun 19 | . 14 22 Ballistic Cannon 2 | . . 4 Peak Build Rating 9 | 6 7 9 Average Rating 6 | 4 5 7 On Entrance 4 | . 6 7 Avg Prop Armor Cover (%) . | . . . Naked Turns . | . . . Heaviest Build 14 | 13 14 11 Greatest Support 26 | 26 26 8 Greatest Overweight (x) 2 | . 2 1 Average Overweight (x) . | . . . Largest Inventory Capacity 8 | 8 8 5 Average Capacity 5 | 6 5 5 Most Carried 7 | 1 7 5 Average Carried 3 | . 3 4 Final Capacity 8 | 8 5 5 Final Carried 5 | 1 5 4 Class Distribution -------------------- 71% | Scavenger-Mutant 28% | Mutant Dominant Class ---------------- Mutant | -10/Materials Scavenger-Mutant | -10/Subcaves Resources | -11 -10 -10 ----------- Run | Yrd Mat Sub Matter Collected 726 | 201 148 377 Remotely . | . . . Salvage Created 353 | . 148 205 Parts 32 | . 17 15 Haulers Intercepted 1 | . 1 . Recyclers Shooed . | . . . Parts Field Recycled . | . . . Retrieved Matter . | . . . Parts Self-Destructed 4 | . . 4 Prevented . | . . . Parts Restored . | . . . Kills | -11 -10 -10 ------- Run | Yrd Mat Sub Combat Hostiles Destroyed 14 | . 6 8 Guns 9 | . 6 3 Cannons 2 | . . 2 AOE 3 | . . 3 Classes Destroyed 3 | . 2 1 Hauler 1 | . 1 . Swarmer 6 | . 6 . Subdweller 8 | . . 8 Best Kill Streak 6 | . 3 6 Combat Bots Only 6 | . 3 6 Max Kills in Single Turn 1 | . 1 1 Gunslinging . | . . . Exploded 1 | . . 1 Melee . | . . . Uniques/NPCs Destroyed . | . . . Combat | -11 -10 -10 -------- Run | Yrd Mat Sub Hostile Shots Fired 64 | . 35 29 Missed 18 | . 11 7 Hits 46 | . 24 22 Projectile 46 | . 24 22 AOE 1 | . . 1 Critical Strikes 1 | . . 1 Damage Taken 881 | . 206 675 Core 261 | . 59 202 Absorbed by Shields . | . . . Core Remaining (%) 100 | 100 . . Volleys Fired 94 | . 35 59 Largest 2 | . 2 2 Hottest 90 | . 90 73 Shots Fired 129 | . 54 75 Gun 103 | . 54 49 Cannon 20 | . . 20 Launcher 6 | . . 6 Special . | . . . Kinetic 121 | . 46 75 Thermal 8 | . 8 . Explosive . | . . . Electromagnetic . | . . . Robot Hit Streak 16 | . 6 16 Robot Miss Streak 3 | . 3 2 Penetration Max . | . . . Secondary Targets 1 | . 1 . Max Gunslinging Chain 1 | . 1 . Shots Hit Robots 62 | . 31 31 Core Hits 25 | . 11 14 Critical Kills . | . . . Critical Parts Destroyed 1 | . . 1 Critical Strikes 2 | . . 2 Destroy 1 | . . 1 Blast 1 | . . 1 Melee Attacks . | . . . Impact . | . . . Slashing . | . . . Piercing . | . . . Sneak Attacks . | . . . Combat Hostiles . | . . . Follow-up Attacks . | . . . Damage Inflicted 1154 | . 276 878 Guns 471 | . 276 195 Cannons 214 | . . 214 Explosions 469 | . . 469 Melee . | . . . Ramming . | . . . Kinetic 1117 | . 239 878 Thermal 37 | . 37 . Explosive . | . . . Electromagnetic . | . . . Impact . | . . . Slashing . | . . . Piercing . | . . . Highest Corruption . | . . . Average Corruption . | . . . Corruption Purged . | . . . Corruption Blocked . | . . . Overload Shots . | . . . Overflow Damage 31 | . . 31 Projectiles . | . . . Explosions 31 | . . 31 Melee . | . . . Knockbacks 3 | . . 3 Impact . | . . . Kinetic 3 | . . 3 Secondary . | . . . Self-Inflicted Damage 50 | . . 50 Shots 1 | . . 1 Rammed . | . . . Targets Rammed . | . . . Kicked . | . . . Crushed . | . . . Highest Temperature 120 | . 120 . Average Temperature 19 | . 19 . Received Heat Transfer 66 | . . 66 Siege Activations . | . . . Martial Activations . | . . . Shielding Activations . | . . . Robots Disrupted . | . . . Combat Hostiles . | . . . Robots Corrupted . | . . . Combat Hostiles . | . . . Parts Fried . | . . . Impact Corruptions . | . . . Robots Melted . | . . . Combat Hostiles . | . . . Parts Melted . | . . . Heat Transferred 111 | . 111 . Parts Sabotaged . | . . . Parts Stolen . | . . . Parts Stripped . | . . . Power Chain Reactions . | . . . Alert | -11 -10 -10 ------- Run | Yrd Mat Sub Maximum Alert Level . | . . . Low Security (%) 100 | 100 100 . Level 1 . | . . . Level 2 . | . . . Level 3 . | . . . Level 4 . | . . . Level 5 . | . . . High Security . | . . . Max Security . | . . . Peak Influence 60 | . 60 . Initial . | . . . Average 24 | . 28 . Influence Increases 166 | . 166 . Destroy 0b10 Robot/C 120 | . 120 . Destroy 0b10 Robot/NC 5 | . 5 . Destroy Leader 22 | . 22 . Successful Hack 4 | . 4 . Lose Combat Pursuer 15 | . 15 . Influence Decreases 166 | . 160 6 Entered New Map 4 | . . 4 Time Decay 152 | . 150 2 Lost Part 10 | . 10 . Squads Dispatched . | . . . Investigation . | . . . Extermination . | . . . Reinforcement . | . . . Assault . | . . . Garrison . | . . . Intercept . | . . . Searches Triggered . | . . . Construction Impeded . | . . . Haulers Reinforced . | . . . Active Scanning Responses . | . . . Cargo Convoy Interrupts . | . . . Stealth | -11 -10 -10 --------- Run | Yrd Mat Sub Distress Signals 1 | . 1 . Communications Jammed . | . . . Distress Signals . | . . . Times Spotted 20 | . 10 10 Peak Tracking Total 3 | . 3 3 Tactical Retreats 1 | . 1 . Traps | -11 -10 -10 ------- Run | Yrd Mat Sub Traps Triggered 1 | . . 1 Indirectly . | . . . Trap Hack Attempts . | . . . Triggered . | . . . Disarmed . | . . . Reprogrammed . | . . . Reused 1 | . . 1 Traps Extracted . | . . . Installed 1 | . . 1 Triggered . | . . . Machines | -11 -10 -10 ---------- Run | Yrd Mat Sub Machines Disabled . | . . . Max in Single Turn . | . . . Machines Repaired . | . . . Machines Dismantled . | . . . Machines Sabotaged . | . . . Overloaded Fab Kills . | . . . Hacking | -11 -10 -10 --------- Run | Yrd Mat Sub Machines Accessed 3 | . 2 1 Terminals 2 | . 2 . Fabricators . | . . . Repair Stations . | . . . Recycling Units . | . . . Scanalyzers . | . . . Garrison Access . | . . . Total Hacks 11 | . 7 4 Successful 9 | . 5 4 Failed 2 | . 2 . Catastrophic . | . . . Database Lockouts . | . . . Manual 5 | . 5 . Terminals 7 | . 7 . Fabricators . | . . . Repair Stations . | . . . Recycling Units . | . . . Scanalyzers . | . . . Garrison Access . | . . . Terminal Hacks 7 | . 3 4 Record 4 | . . 4 Robot Analysis 1 | . 1 . Branch Access Points 1 | . 1 . Emergency Access Points 1 | . 1 . Fabricator Hacks . | . . . Repair Station Hacks . | . . . Recycling Unit Hacks . | . . . Scanalyzer . | . . . Garrison Access Hacks . | . . . Unauthorized Hacks 2 | . 2 . Terminals 2 | . 2 . Assimilate 1 | . 1 . Botnet 1 | . 1 . Fabricators . | . . . Repair Stations . | . . . Recycling Units . | . . . Scanalyzers . | . . . Garrison Access . | . . . Data Cores Recovered . | . . . Used . | . . . Hacking Detections 2 | . 2 . Full Trace Events . | . . . Feedback Events . | . . . Feedback Blocked . | . . . Robot Schematics Acquired . | . . . Robots Built . | . . . Authchips . | . . . Time . | . . . Total Robot Build Rating . | . . . Part Schematics Acquired . | . . . Parts Built . | . . . Authchips . | . . . Time . | . . . Total Part Build Rating . | . . . Part Studies Acquired . | . . . Parts Repaired . | . . . Time . | . . . Parts Recycled . | . . . Recycled Matter . | . . . Retrieved Matter . | . . . Retrieved Components . | . . . Parts Scanalyzed . | . . . Part Schematics Acquired . | . . . Parts Damaged . | . . . Bothacking | -11 -10 -10 ------------ Run | Yrd Mat Sub Used RIF Installer . | . . . Robots Hacked . | . . . Non-combat . | . . . Combat . | . . . Robot Hacks Applied . | . . . Relay Couplers Released . | . . . Fabnet Peak Effective % . | . . . Robots Rewired . | . . . Allies Hacked . | . . . Hacks Repelled . | . . . Allies | -11 -10 -10 -------- Run | Yrd Mat Sub Total Allies 1 | . 1 . Largest Group 1 | . 1 1 Highest-Rated Group 10 | . 10 10 Highest-Rated Ally 10 | . 10 10 Total Orders . | . . . Ally Attacks . | . . . Total Damage . | . . . Kills . | . . . Allies Corrupted . | . . . Allies Melted . | . . . Intel | -11 -10 -10 ------- Run | Yrd Mat Sub Active Infowar (turns) 801 | . 249 552 Sensors 485 | . 249 236 T.N.C. 591 | . 39 552 Robot Analysis Total 1 | . 1 . Derelict Logs Recovered 1 | . . 1 Drone Launches . | . . . Drone Recoveries . | . . . Exploration | -11 -10 -10 ------------- Run | Yrd Mat Sub Turns Passed 917 | 60 305 552 Spaces Moved 1011 | 56 323 632 Core 1 | 1 . . Treads . | . . . Legs . | . . . Wheels 121 | 55 66 . Hover . | . . . Flight 889 | . 257 632 Fastest Speed 37 | 50 37 37 Average Speed 43 | 89 48 37 Slowest Speed 200 | 100 200 120 Overloaded Moves . | . . . Propulsion Burnouts . | . . . Robots Hopped 4 | . 3 1 Potential Cave-ins 1 | . . 1 Cave-ins Triggered . | . . . Exploration Rate (%) 31 | 3 51 39 Regions Visited 2 Branch Regions 1 Pre-discovered Areas 2 | . . 2 Known Exits Taken . | . . . Unknown Exits Taken 2 | 1 1 . Scrap Searched 9 | . . 9 Spaces Dug 6 | . . 6 Terrain Destroyed 73 | . . 73 Melee . | . . . Projectile 6 | . . 6 AOE 67 | . . 67 Terrain Rammed . | . . . Walls Destroyed . | . . . Machines Disabled . | . . . Actions | -11 -10 -10 --------- Run | Yrd Mat Sub Total 1358 | 62 423 873 Wait 203 | . 42 161 Move 1002 | 55 317 630 Hop 3 | . 2 1 Pick Up 11 | 1 7 3 Fast Attach 16 | 6 5 5 Attach 8 | . 3 5 Detach 6 | . 4 2 Swap 4 | . 2 2 Drop 10 | . 6 4 Fire 94 | . 35 59 Melee . | . . . Ram . | . . . Kick . | . . . Crush . | . . . Escape Stasis . | . . . Rewire . | . . . Trap 1 | . . 1 Miscellaneous . | . . . Route ------- -11/Scrapyard -10/Materials (discovered 3 exits: [*Mat] / *Min / *Sub) -10/Subcaves (discovered 1 exit: [*Scr]) History --------- Turn | Location | Event 14 | -11/Scrapyard | Discovered new exit (range 13) 61 | -11/Scrapyard | Entered Materials 191 | -10/Materials | Identified exit to Mines 200 | -10/Materials | Discovered new exit (range 14) 339 | -10/Materials | Discovered new exit (range 5) 366 | -10/Materials | Entered Subcaves 366 | -10/Subcaves | Accompanied by 1 ally 367 | -10/Subcaves | Approached by a straggling Scientist 377 | -10/Subcaves | Learned location of Mines (-9) 559 | -10/Subcaves | Build established: Scavenger-Mutant 578 | -10/Subcaves | Ambushed by Subdwellers from Twisted Machinery 609 | -10/Subcaves | Ambushed by Subdweller buried in earth 666 | -10/Subcaves | Lost 4 parts (1p1u2w) 669 | -10/Subcaves | Disturbed a concealed Subdweller 675 | -10/Subcaves | Core integrity fell below 50% 873 | -10/Subcaves | Visited Clippyterm 874 | -10/Subcaves | Learned location of Extension (-6) 874 | -10/Subcaves | Learned 40 Factory zone layouts 917 | -10/Subcaves | Core integrity fell below 20% 918 | -10/Subcaves | Destroyed by BE-322(R) with Subdweller Beam Cannon Last Messages --------------- Derelict or three, would you like help? World map updated: -6/Extension. >>Record! "Cartography" It looks like you want to prove yourself as a member of the Cartography Club, why not cheat using advanced predictive AI techniques? Data stored: Factory zone layouts (x40). >>Record! "Tab" It looks like you're biased against spaces, I think you need more help than I can offer. >>Record "Permadeath" It looks like you're defining "roguelike," quit while you're ahead. Please. 00911_ Lgt. Ion Engine destroyed. 00913_ Lgt. Assault Rifle destroyed. 00913_ Sub. Machine Gun shoots sparks and powers down. 00916_ Flight Unit destroyed. 00916_ Destroyed Flight Unit. 00916_ 6F-47N(R) destroyed. Map ----- +----------------------------------------------------+ | ?????????????????????????????????????????????????? | | ?????????????????????????????????????????????????? | | ?????????????????????????????????????????????????? | | ?????????????????????????????????????????????????? | | ?????????????????????????????????????????????????? | | ?????????????????????????????????????????????????? | | ?????????????????????????????????????????????????? | | ?????????????????????????????????????????????????? | | ?????????????????????????????????????????????????? | | ?????????????????????????????????????????????????? | | ??????????????????##?????????????????????????????? | | ????????????????## ##????????????????????????????? | | ???????#####?#### #????????????????????????????? | | ???????#"""### #??###???????????????????????? | | ???????#"" ## #??##"#???????????????????????? | | ???????#"X ###?##""#???????????????????????? | | ???????#"" ## ######"" #???????????????????????? | | ???????#"""## # """" ##??????????????????????? | | ???????####### "" #??????????????????????? | | ??????????### "" ##?????????????????????? | | ?????????##" ###""" " ###???????????????????? | | ######???#" " #?###### ;#??????????????????## | | "%*!"#???## "" #???####; ;####???????????????# | | ##!%#????### ###### ;;& ;## ##???????????????# | | & ####?????#" ##""""" %R #???????????????? | | # "###?????## #"" "" &@ ##?????????####?# | | # ## #??????#"##"""" #; ;;" ###??????## ### | | " " ##?????#""#""" ;; ;##" ##????## ## | | #?#####""""" ;## ###### > | | ### "#"""" # | | # """ #" # | | ## # ####"" ####### ### ####### | | ?## #####??#######?????## #####?#### ## ##?????? | | ??####???????????????????####????????######??????? | | ?????????????????????????????????????????????????? | | ?????????????????????????????????????????????????? | | ?????????????????????????????????????????????????? | | ?????????????????????????????????????????????????? | | ?????????????????????????????????????????????????? | | ?????????????????????????????????????????????????? | | ?????????????????????????????????????????????????? | | ?????????????????????????????????????????????????? | | ?????????????????????????????????????????????????? | | ?????????????????????????????????????????????????? | | ?????????????????????????????????????????????????? | | ?????????????????????????????????????????????????? | | ?????????????????????????????????????????????????? | | ?????????????????????????????????????????????????? | | | | | +----------------------------------------------------+ Best States ------------- Heat Dissipation 25 Energy Generation 10 Energy Capacity 250 Matter Stores 300 Matter Capacity 300 Sight Range 16 Robot Scan Range 14 Terrain Scan Density 10 Evasion (%) 62 Item Schematics ----------------- None Robot Schematics ------------------ None Fabricated ------------ Nothing Repaired ---------- Nothing Studied --------- None Alien Tech Used ----------------- None Achievements -------------- Do Not Disturb Challenges ------------ None Game ------ Seed RingTerrainClaymores Manual? 0 Play Time 00:18:53 Cumulative 113.3 hours Start 2026.06.23 @ 22:06:07 End 2026.06.23 @ 22:26:03 Sessions 1 Manual Loads 0 Difficulty Rogue Special Mode None Game No. 68 Rogue 68 Adventurer 0 Explorer 0 Win Type - Total 1 Types 1/0/0/0/0/0/0/0/0/0 Lore% 59 Gallery% 51 Achievement% 45 Wizard Run 0 Options --------- Layout 1 ASCII 0 Keyboard 0 Movement Numpad Keybinds 0 Fullscreen 1 Font 24/Smallcaps Map View 50x35 Zoom Use 0% Tactical HUD 1 Map Filters NONE Filters NONE Steam 1 RUN: be998cc7-dff6-4c76-80c7-991f15411a1f